bitfinex-derivatives/quotes_BTCF0:USTF0_20251128
["timestamp","ask_amount","ask_price","bid_price","bid_amount"]
[1764322125717,0.2279521,91650.0,91649.0,0.06265072]
[1764322125920,0.2509968,91650.0,91649.0,0.06265072]
[1764322129713,0.2649368,91650.0,91649.0,0.06265072]
[1764322129918,0.2649368,91650.0,91649.0,0.01773072]
[1764322130117,0.2649368,91650.0,91649.0,0.03955072]
[1764322130520,0.2649368,91650.0,91649.0,0.06265072]
[1764322131223,0.2509968,91650.0,91649.0,0.06265072]
[1764322134121,0.2279521,91650.0,91649.0,0.06265072]
[1764322136223,0.21704,91650.0,91649.0,0.06265072]
[1764322136420,0.21704,91650.0,91649.0,0.12090907]
[1764322138538,0.21704,91650.0,91649.0,0.06265072]
[1764322148835,0.23026,91650.0,91649.0,0.06265072]
[1764322149826,0.21704,91650.0,91649.0,0.06265072]
[1764322154433,0.02250363,91659.0,91658.0,0.0546012]
[1764322154628,0.02250363,91659.0,91658.0,0.51289513]
[1764322155336,0.04411363,91659.0,91658.0,0.51289513]
[1764322155724,0.04511363,91659.0,91658.0,0.10198393]
[1764322159536,0.04511363,91659.0,91658.0,0.04369]
[1764322162039,0.02382363,91659.0,91658.0,0.04369]
[1764322162336,0.04504363,91659.0,91658.0,0.04369]
[1764322163531,0.04504363,91659.0,91658.0,0.10198393]
[1764322164125,0.04504363,91659.0,91658.0,0.04369]
[1764322166532,0.06819098,91659.0,91658.0,0.04369]
[1764322167532,0.04504363,91659.0,91658.0,0.04369]
[1764322174144,0.06819107,91659.0,91658.0,0.04369]
[1764322178942,0.04697107,91659.0,91658.0,0.04369]
[1764322179247,0.05788207,91659.0,91658.0,0.04369]
[1764322179753,0.07971207,91659.0,91658.0,0.04369]
[1764322181843,0.06880107,91659.0,91658.0,0.04369]
[1764322182148,0.00116363,91659.0,91658.0,0.42369]
[1764322182454,0.0553601,91667.0,91666.0,0.04458]
[1764322182651,0.02315542,91667.0,91666.0,0.4254902]
[1764322182840,0.4161588,91678.0,91677.0,0.04458]
[1764322183044,0.42840393,91678.0,91677.0,0.04458]
[1764322184248,0.40525,91678.0,91677.0,0.04458]
[1764322184449,0.40825,91678.0,91677.0,0.04458]
[1764322185044,0.40825,91678.0,91677.0,0.44458]
[1764322186449,0.4191588,91678.0,91677.0,0.44458]
[1764322189146,0.4191588,91678.0,91677.0,0.46175388]
[1764322189942,0.4191588,91678.0,91677.0,0.23175388]
[1764322190147,0.4191588,91678.0,91677.0,0.24266278]
[1764322190554,0.4191588,91678.0,91677.0,0.07266278]
[1764322190758,0.0583588,91678.0,91677.0,0.43266278]
[1764322191659,0.0583588,91678.0,91677.0,0.42175388]
[1764322192046,0.0583588,91678.0,91677.0,0.43266278]
[1764322194363,0.0583588,91678.0,91677.0,0.42175388]
[1764322199451,0.055358,91685.0,91684.0,0.04458]
[1764322199651,0.055358,91685.0,91684.0,0.05788]
[1764322200263,0.02262,91685.0,91684.0,0.4887881]
[1764322200462,0.02278363,91687.0,91686.0,0.0554878]
[1764322200658,0.00016363,91687.0,91686.0,0.4354878]
[1764322200858,0.40525,91696.0,91695.0,0.0554868]
[1764322201270,0.04445,91696.0,91695.0,0.4454868]
[1764322201458,0.4167556,91705.0,91704.0,0.04458]
[1764322201860,0.4167556,91705.0,91695.0,0.04423363]
[1764322201861,0.0548266,91696.0,91695.0,0.04423363]
[1764322202064,0.0548266,91696.0,91695.0,0.19423363]
[1764322202763,0.0548266,91696.0,91695.0,0.04423363]
[1764322202958,0.0548266,91696.0,91695.0,0.00016363]
[1764322203163,0.5058266,91696.0,91695.0,0.00016363]
[1764322203362,0.5058266,91696.0,91695.0,0.00316363]
[1764322203759,0.0548283,91682.0,91677.0,0.01717388]
[1764322203965,0.0548288,91678.0,91677.0,0.01717388]
[1764322204174,0.04392,91671.0,91670.0,0.40487]
[1764322204467,0.04392,91671.0,91670.0,0.4157797]
[1764322204771,0.02149,91671.0,91670.0,0.4157797]
[1764322205161,0.04392,91671.0,91670.0,0.3608]
[1764322205362,0.05047,91662.0,91661.0,0.00016363]
[1764322205556,0.04392,91662.0,91661.0,0.04423363]
[1764322206160,0.04392,91662.0,91661.0,0.06074456]
[1764322206763,0.04392,91662.0,91661.0,0.06174456]
[1764322207371,0.04392,91662.0,91661.0,0.06774456]
[1764322208559,0.05701,91662.0,91661.0,0.06774456]
[1764322208972,0.04392,91662.0,91661.0,0.06774456]
[1764322210372,0.4156293,91674.0,91673.0,0.04407]
[1764322210565,0.43866606,91674.0,91673.0,0.04407]
[1764322210968,0.4156293,91674.0,91673.0,0.04407]
[1764322212373,0.4156293,91674.0,91673.0,0.04507]
[1764322212576,0.4156293,91674.0,91673.0,0.04807]
[1764322212978,0.4287193,91674.0,91673.0,0.027]
[1764322213668,0.4287193,91674.0,91673.0,0.004]
[1764322213669,0.8087193,91674.0,91673.0,0.004]
[1764322214974,0.8087193,91674.0,91661.0,0.01667456]
[1764322214975,0.0587407,91662.0,91661.0,0.01667456]
[1764322215175,0.5916207,91662.0,91661.0,0.01667456]
[1764322216078,0.5916207,91662.0,91661.0,0.02367456]
[1764322216275,0.9716207,91662.0,91661.0,0.001]
[1764322216484,0.0544925,91647.0,91646.0,0.00027279]
[1764322216671,0.4152925,91647.0,91646.0,0.00027279]
[1764322217972,0.4152925,91647.0,91646.0,0.02214279]
[1764322218175,0.4152925,91647.0,91646.0,0.00027279]
[1764322218578,0.4162925,91647.0,91646.0,0.00027279]
[1764322219674,0.4162925,91647.0,91646.0,0.04496279]
[1764322220482,0.4162925,91647.0,91646.0,0.06162372]
[1764322220777,0.4162925,91647.0,91646.0,0.01693372]
[1764322222776,0.4162925,91647.0,91646.0,0.06162372]
[1764322222985,0.0554925,91647.0,91646.0,0.06162372]
[1764322223976,0.04458,91647.0,91646.0,0.06162372]
[1764322224176,0.001,91647.0,91646.0,0.06162372]
[1764322224378,0.04458,91647.0,91646.0,0.06162372]
[1764322224676,0.04458,91647.0,91646.0,0.01693372]
[1764322225482,0.04458,91647.0,91646.0,0.03880372]
[1764322226587,0.04458,91647.0,91646.0,0.01693372]
[1764322226888,0.49458,91647.0,91646.0,0.01693372]
[1764322227585,0.04458,91647.0,91646.0,0.01693372]
[1764322228489,0.40538,91647.0,91646.0,0.01693372]
[1764322230191,0.5775,91647.0,91646.0,0.01693372]
[1764322231084,1.0075,91647.0,91646.0,0.01693372]
[1764322234187,1.0075,91647.0,91646.0,0.06077372]
[1764322234388,0.5775,91647.0,91646.0,0.01693372]
[1764322238094,0.9675,91647.0,91646.0,0.01260652]
[1764322238385,0.0614935,91638.0,91637.0,0.00016363]
[1764322238587,0.0614935,91638.0,91621.0,0.05829393]
[1764322238588,0.0109153,91623.0,91621.0,0.05829393]
[1764322238788,0.0544063,91615.0,91612.0,0.05829393]
[1764322238979,0.0544063,91615.0,91608.0,0.3608]
[1764322238980,0.04349,91612.0,91611.0,0.05829393]
[1764322239181,0.0109171,91608.0,91606.0,0.05856684]
[1764322239388,0.0109171,91608.0,91606.0,0.00027291]
[1764322239389,0.0544071,91608.0,91606.0,0.00027291]
[1764322239591,0.0544071,91608.0,91607.0,0.02228692]
[1764322239795,0.0544071,91608.0,91607.0,0.04394692]
[1764322240291,0.0544071,91608.0,91607.0,0.04594692]
[1764322241201,0.0544071,91608.0,91607.0,0.05194692]
[1764322241581,0.04349,91608.0,91607.0,0.0686722]
[1764322241784,0.5438367,91612.0,91607.0,0.0686722]
[1764322241785,0.38228,91612.0,91611.0,0.04384]
[1764322242191,0.40429,91612.0,91611.0,0.04384]
[1764322242692,0.40429,91612.0,91611.0,0.02218]
[1764322242991,0.0544071,91608.0,91607.0,0.0686722]
[1764322243188,0.04349,91608.0,91607.0,0.0686722]
[1764322243699,0.04349,91608.0,91607.0,0.0666722]
[1764322244195,0.1936,91611.0,91610.0,0.04384]
[1764322244391,0.00016373,91617.0,91616.0,0.05711]
[1764322244591,0.00016373,91617.0,91616.0,0.0680262]
[1764322246093,0.00016373,91617.0,91616.0,0.4280262]
[1764322246296,0.17212,91624.0,91623.0,0.0547553]
[1764322246494,0.0109147,91629.0,91628.0,0.0547547]
[1764322246698,0.0323947,91629.0,91628.0,0.0547547]
[1764322246889,0.0544047,91629.0,91628.0,0.04384]
[1764322247288,0.04349,91629.0,91628.0,0.04384]
[1764322247490,0.17216,91636.0,91629.0,0.0547546]
[1764322247491,0.0323945,91630.0,91629.0,0.0547546]
[1764322247998,0.0544045,91630.0,91629.0,0.0547546]
[1764322248197,0.0544045,91630.0,91629.0,0.04384]
[1764322249893,0.0544045,91630.0,91629.0,0.04484]
[1764322250395,0.0544045,91630.0,91629.0,0.02318]
[1764322250696,0.4670245,91630.0,91629.0,0.001]
[1764322251897,0.0670245,91630.0,91629.0,0.001]
[1764322252095,0.5070245,91630.0,91629.0,0.001]
[1764322254498,0.52986271,91630.0,91629.0,0.001]
[1764322254701,0.51724271,91630.0,91629.0,0.001]
[1764322254895,0.52986271,91630.0,91629.0,0.001]
[1764322258903,0.04349,91630.0,91629.0,0.04484]
[1764322259102,0.21565,91630.0,91629.0,0.04484]
[1764322259791,0.61565,91630.0,91629.0,0.02318]
[1764322259989,0.61565,91630.0,91629.0,0.001]
[1764322260395,0.62573,91630.0,91629.0,0.001]
[1764322261793,0.61565,91630.0,91629.0,0.0241]
[1764322261988,0.61565,91630.0,91629.0,0.04511]
[1764322262505,0.21565,91630.0,91629.0,0.04511]
[1764322262696,0.58565,91630.0,91629.0,0.001]
[1764322265408,0.21565,91630.0,91629.0,0.04511]
[1764322265602,0.19364,91630.0,91629.0,0.04511]
[1764322265911,0.21649,91630.0,91629.0,0.04511]
[1764322266608,0.17216,91630.0,91629.0,0.04511]
[1764322267007,0.3608,91631.0,91630.0,0.0685645]
[1764322267209,0.53296,91631.0,91630.0,0.0685645]
[1764322267409,0.55427,91631.0,91630.0,0.0685645]
[1764322267607,0.57712,91631.0,91630.0,0.05765]
[1764322268009,0.40496,91631.0,91630.0,0.05865]
[1764322268810,0.3608,91631.0,91630.0,0.0695645]
[1764322270613,0.40496,91631.0,91630.0,0.0695645]
[1764322271614,0.40496,91631.0,91630.0,0.05865]
[1764322271805,0.40496,91631.0,91630.0,0.0241]
[1764322272205,0.40496,91631.0,91630.0,0.04511]
[1764322274414,0.4158744,91631.0,91630.0,0.04511]
[1764322275117,0.4158744,91631.0,91630.0,0.05875]
[1764322276209,0.40496,91631.0,91630.0,0.05875]
[1764322276412,0.3608,91631.0,91630.0,0.05875]
[1764322277423,0.3717144,91631.0,91630.0,0.05875]
[1764322277815,0.3941844,91631.0,91630.0,0.05875]
[1764322279121,0.4168444,91631.0,91630.0,0.05875]
[1764322280023,0.40593,91631.0,91630.0,0.05875]
[1764322280320,0.38327,91631.0,91630.0,0.05875]
[1764322280520,0.3608,91631.0,91630.0,0.05875]
[1764322280715,0.38327,91631.0,91630.0,0.05875]
[1764322280919,0.40593,91631.0,91630.0,0.05875]
[1764322282228,0.40593,91631.0,91630.0,0.0241]
[1764322282720,0.40593,91631.0,91630.0,0.001]
[1764322283116,0.81593,91631.0,91630.0,0.001]
[1764322285529,0.41593,91631.0,91630.0,0.001]
[1764322285727,0.65593,91631.0,91630.0,0.001]
[1764322287132,0.40593,91631.0,91630.0,0.001]
[1764322287333,0.74593,91631.0,91630.0,0.001]
[1764322288533,0.0560449,91627.0,91626.0,0.01645076]
[1764322288729,0.0560457,91620.0,91616.0,0.05820522]
[1764322288924,0.2281657,91620.0,91616.0,0.05820522]
[1764322289122,0.2281657,91620.0,91617.0,0.05820522]
[1764322289324,0.2281657,91620.0,91619.0,0.01679653]
[1764322289629,0.2281657,91620.0,91619.0,0.00016373]
[1764322290130,0.2281657,91620.0,91619.0,0.00316373]
[1764322291730,0.2281657,91620.0,91619.0,0.00416373]
[1764322293633,0.2281657,91620.0,91619.0,0.02142136]
[1764322294138,0.2281657,91620.0,91619.0,0.04463136]
[1764322295436,0.2281657,91620.0,91619.0,0.02142136]
[1764322297145,0.2281657,91620.0,91619.0,0.04356136]
[1764322297739,0.5889657,91620.0,91619.0,0.06597136]
[1764322300050,0.5889657,91620.0,91619.0,0.04356136]
[1764322300243,0.5889657,91620.0,91619.0,0.06597136]
[1764322306155,0.9790457,91620.0,91619.0,0.02142136]
[1764322308059,0.9790457,91620.0,91619.0,0.01742136]
[1764322308252,0.9790457,91620.0,91619.0,0.02042136]
[1764322308450,0.0661271,91608.0,91607.0,0.00010692]
[1764322308647,0.9690471,91608.0,91607.0,0.00010692]
[1764322309760,0.7881071,91608.0,91607.0,0.04465692]
[1764322309960,0.7102671,91608.0,91607.0,0.04465692]
[1764322310147,0.7102671,91608.0,91607.0,0.04865692]
[1764322310354,1.0102671,91608.0,91607.0,0.02624692]
[1764322310552,1.0102671,91608.0,91607.0,0.00410692]
[1764322310957,1.0190871,91608.0,91607.0,0.00510692]
[1764322311153,0.5902671,91608.0,91607.0,0.06642477]
[1764322311354,0.5902671,91608.0,91607.0,0.04965692]
[1764322312957,0.5902671,91608.0,91607.0,0.00510692]
[1764322313164,0.5990871,91608.0,91607.0,0.00510692]
[1764322314261,0.5902671,91608.0,91607.0,0.02724692]
[1764322314856,0.5902671,91608.0,91607.0,0.04965692]
[1764322315350,0.5902671,91608.0,91607.0,0.06684058]
[1764322316765,0.5902671,91608.0,91607.0,0.02229058]
[1764322317360,0.5990871,91608.0,91607.0,0.02229058]
[1764322319757,0.9990871,91608.0,91607.0,0.02229058]
[1764322320164,0.5902671,91608.0,91607.0,0.04443058]
[1764322320356,0.5902671,91608.0,91607.0,0.06684058]
[1764322321569,0.4181071,91608.0,91607.0,0.06684058]
[1764322321864,0.2256965,91614.0,91613.0,0.04454]
[1764322322959,0.2256965,91614.0,91613.0,0.04754]
[1764322323361,0.21478,91614.0,91613.0,0.0584565]
[1764322323872,0.21478,91614.0,91613.0,0.04754]
[1764322325573,0.21478,91614.0,91613.0,0.02463]
[1764322326266,0.21478,91614.0,91613.0,0.04754]
[1764322327270,0.2236,91614.0,91613.0,0.003]
[1764322327671,0.6536,91614.0,91607.0,0.01729058]
[1764322327864,0.6536,91614.0,91606.0,0.00027291]
[1764322327865,0.04262,91607.0,91606.0,3.49e-06]
[1764322328175,0.4257655,91607.0,91606.0,3.49e-06]
[1764322328571,0.4257655,91607.0,91606.0,0.01723858]
[1764322328874,0.38324256,91607.0,91606.0,3.49e-06]
[1764322329076,0.41446256,91607.0,91606.0,3.49e-06]
[1764322329472,0.02522,91604.0,91590.0,0.05820522]
[1764322329670,0.38522,91604.0,91590.0,0.05820522]
[1764322330266,0.38522,91604.0,91580.0,0.07757772]
[1764322330267,0.38522,91604.0,91589.0,0.05820522]
[1764322330473,0.38522,91604.0,91595.0,0.01336]
[1764322331972,0.38522,91604.0,91603.0,0.01288]
[1764322332275,0.38522,91604.0,91603.0,0.03037803]
[1764322332475,0.38522,91604.0,91603.0,0.02937803]
[1764322333581,0.02522,91604.0,91603.0,0.07337803]
[1764322333776,0.19738,91604.0,91603.0,0.07337803]
[1764322334166,0.17216,91604.0,91603.0,0.07337803]
[1764322334371,9.706e-05,91607.0,91606.0,0.04539]
[1764322335167,0.01270706,91607.0,91606.0,0.04539]
[1764322335380,9.706e-05,91607.0,91606.0,0.04539]
[1764322335579,0.00209706,91607.0,91606.0,0.04639]
[1764322336481,0.01470706,91607.0,91606.0,0.04639]
[1764322338576,0.02731706,91607.0,91606.0,0.04639]
[1764322339683,0.41731706,91607.0,91606.0,0.001]
[1764322340280,0.41731706,91607.0,91606.0,0.04639]
[1764322340983,0.41731706,91607.0,91606.0,0.001]
[1764322342286,0.41731706,91607.0,91606.0,0.02402]
[1764322342679,0.02731706,91607.0,91606.0,0.04639]
[1764322342880,0.19947706,91607.0,91606.0,0.04639]
[1764322343583,0.17425706,91607.0,91606.0,0.04639]
[1764322344188,0.18686706,91607.0,91606.0,0.04639]
[1764322344782,0.19947706,91607.0,91606.0,0.04639]
[1764322344985,0.19947706,91607.0,91606.0,0.001]
[1764322345379,0.19947706,91607.0,91606.0,0.04639]
[1764322345588,0.18686706,91607.0,91606.0,0.04639]
[1764322345791,0.17425706,91607.0,91606.0,0.04639]
[1764322346383,0.18686706,91607.0,91606.0,0.04639]
[1764322346989,0.17425706,91607.0,91606.0,0.04639]
[1764322347299,0.19947706,91607.0,91606.0,0.04639]
[1764322350087,0.17425706,91607.0,91606.0,0.04639]
[1764322350788,0.18686706,91607.0,91606.0,0.04639]
[1764322351094,0.19947706,91607.0,91606.0,0.04639]
[1764322351883,0.17425706,91607.0,91606.0,0.0573074]
[1764322352187,0.00209706,91607.0,91606.0,0.4073074]
[1764322354405,0.01301426,91607.0,91606.0,0.4073074]
[1764322354809,0.00209706,91607.0,91606.0,0.4073074]
[1764322357714,0.01301426,91607.0,91606.0,0.4073074]
[1764322359597,0.01301426,91607.0,91606.0,0.11639]
[1764322359806,0.03823426,91607.0,91606.0,0.04639]
[1764322361002,0.02562426,91607.0,91606.0,0.04639]
[1764322361203,0.03823426,91607.0,91606.0,0.04639]
[1764322361703,0.03823426,91607.0,91606.0,0.1048038]
[1764322361904,0.03823426,91607.0,91606.0,0.04639]
[1764322362405,0.03823426,91607.0,91606.0,0.001]
[1764322363602,0.03823426,91607.0,91606.0,0.02332]
[1764322365613,0.03823426,91607.0,91606.0,0.04441]
[1764322366403,0.01301426,91607.0,91606.0,0.04441]
[1764322366603,0.00209706,91607.0,91606.0,0.04441]
[1764322367001,0.01470706,91607.0,91606.0,0.04441]
[1764322367207,0.02731706,91607.0,91606.0,0.04441]
[1764322370010,0.03823426,91607.0,91606.0,0.04441]
[1764322373916,0.31380493,91616.0,91615.0,0.04341]
[1764322373917,0.17216,91616.0,91615.0,0.04341]
[1764322374121,0.0109146,91629.0,91616.0,0.04341]
[1764322374418,0.01288279,91646.0,91645.0,0.04341]
[1764322374616,0.38629279,91646.0,91645.0,0.04341]
[1764322374821,0.38428811,91646.0,91645.0,0.04341]
[1764322375022,0.36107279,91646.0,91645.0,0.40341]
[1764322375418,0.37368279,91646.0,91645.0,0.40341]
[1764322375624,0.38629279,91646.0,91645.0,0.40341]
[1764322375818,0.38629279,91646.0,91645.0,0.09341]
[1764322376014,0.38629279,91646.0,91645.0,0.44341]
[1764322376210,0.36107279,91646.0,91645.0,0.44341]
[1764322376415,0.36207279,91646.0,91645.0,0.44341]
[1764322376814,0.37407279,91646.0,91645.0,0.44441]
[1764322377320,0.38498539,91646.0,91645.0,0.04441]
[1764322377620,0.41020539,91646.0,91645.0,0.04441]
[1764322377822,0.39820539,91646.0,91645.0,0.04341]
[1764322378023,0.40720539,91646.0,91645.0,0.04441]
[1764322378221,0.40620539,91646.0,91645.0,0.04441]
[1764322378425,0.40620539,91646.0,91645.0,0.001]
[1764322378614,0.80620539,91646.0,91645.0,0.001]
[1764322379322,0.0361335,91638.0,91637.0,0.05704]
[1764322380520,0.0431335,91638.0,91637.0,0.05704]
[1764322381032,0.0361335,91638.0,91637.0,0.05704]
[1764322381327,0.0189135,91638.0,91637.0,0.05704]
[1764322381715,0.008,91638.0,91637.0,0.05704]
[1764322381915,0.008,91638.0,91637.0,0.43704]
[1764322382113,0.36107279,91646.0,91645.0,0.04449]
[1764322383124,0.36207279,91646.0,91645.0,0.04449]
[1764322383326,0.37207279,91646.0,91645.0,0.04549]
[1764322383718,0.36207279,91646.0,91645.0,0.04449]
[1764322383913,0.37107279,91646.0,91645.0,0.04549]
[1764322385028,0.37007279,91646.0,91645.0,0.04549]
[1764322385628,0.41129279,91646.0,91645.0,0.001]
[1764322386140,0.41129279,91646.0,91636.0,0.00016373]
[1764322386141,0.0521335,91638.0,91636.0,0.00016373]
[1764322386325,0.04122,91613.0,91612.0,0.40529]
[1764322386524,0.4129351,91625.0,91624.0,0.05787]
[1764322386917,0.052136,91617.0,91616.0,0.05787]
[1764322388322,0.0521365,91613.0,91612.0,0.38292181]
[1764322388525,0.0521365,91613.0,91612.0,0.42741181]
[1764322388926,0.0521365,91613.0,91612.0,0.42341181]
[1764322389532,0.0521365,91613.0,91612.0,0.42541181]
[1764322390626,0.0109165,91613.0,91612.0,0.42541181]
[1764322390828,0.0109165,91613.0,91612.0,0.42641181]
[1764322396635,0.0521365,91613.0,91612.0,0.02112181]
[1764322396937,0.4721365,91613.0,91612.0,0.02112181]
[1764322399230,0.8329365,91613.0,91612.0,0.02112181]
[1764322401929,0.6029365,91613.0,91612.0,0.06448181]
[1764322402128,0.8029365,91613.0,91612.0,0.06448181]
[1764322403738,0.9751365,91613.0,91612.0,0.06448181]
[1764322403940,0.7251365,91613.0,91612.0,0.06448181]
[1764322404326,0.3923265,91613.0,91612.0,0.06448181]
[1764322404733,0.3717165,91613.0,91612.0,0.06448181]
[1764322405436,0.3923265,91613.0,91612.0,0.06448181]
[1764322405630,0.4129365,91613.0,91612.0,0.06448181]
[1764322405935,0.3717165,91613.0,91612.0,0.06448181]
[1764322406645,0.3923265,91613.0,91612.0,0.06448181]
[1764322406941,0.4129365,91613.0,91612.0,0.06448181]
[1764322408542,0.4129365,91613.0,91612.0,0.02112181]
[1764322409534,0.4129365,91613.0,91612.0,0.04229181]
[1764322410857,0.4129365,91613.0,91612.0,0.06448181]
[1764322412153,0.3717165,91613.0,91612.0,0.06448181]
[1764322412354,0.4129365,91613.0,91612.0,0.06448181]
[1764322414448,0.43513147,91613.0,91612.0,0.06448181]
[1764322417262,0.02219497,91613.0,91612.0,0.06448181]
[1764322417459,0.0109159,91618.0,91617.0,0.04437]
[1764322417659,0.03313573,91618.0,91617.0,0.04437]
[1764322417866,0.04282983,91618.0,91617.0,0.04437]
[1764322418654,0.04282983,91618.0,91617.0,0.04537]
[1764322418852,0.05374573,91618.0,91617.0,0.04537]
[1764322419058,0.05374573,91618.0,91617.0,0.056286]
[1764322419668,0.05374573,91618.0,91617.0,0.04537]
[1764322419868,0.07435573,91618.0,91617.0,0.04537]
[1764322423958,0.07435573,91618.0,91617.0,0.001]
[1764322424563,0.0521359,91618.0,91617.0,0.001]
[1764322425272,0.0521359,91618.0,91617.0,0.02355]
[1764322426665,0.0521359,91618.0,91617.0,0.001]
[1764322426975,0.5021359,91618.0,91617.0,0.001]
[1764322430375,0.52471061,91618.0,91617.0,0.001]
[1764322431771,0.07471061,91618.0,91617.0,0.04537]
[1764322434681,0.07471061,91618.0,91617.0,0.001]
[1764322435378,0.07471061,91618.0,91617.0,0.02355]
[1764322436075,0.07471061,91618.0,91617.0,0.04537]
[1764322436976,0.07471061,91618.0,91617.0,0.02355]
[1764322437168,0.07471061,91618.0,91617.0,0.001]
[1764322438771,0.49471061,91618.0,91617.0,0.001]
[1764322438971,0.49471061,91618.0,91612.0,0.01812181]
[1764322438972,0.0521365,91613.0,91612.0,0.01812181]
[1764322439172,0.0521372,91607.0,91606.0,0.05840911]
[1764322439478,1.0150972,91607.0,91606.0,0.10277911]
[1764322439877,0.6550972,91607.0,91606.0,0.10277911]
[1764322440276,0.6550972,91607.0,91606.0,0.10577911]
[1764322440583,0.38141,91607.0,91606.0,0.10577911]
[1764322440883,0.40202,91618.0,91617.0,0.04437]
[1764322441182,1.01082,91618.0,91617.0,0.04437]
[1764322441684,0.53296,91618.0,91617.0,0.04437]
[1764322442279,0.55357,91618.0,91617.0,0.04437]
[1764322442579,0.57418,91618.0,91617.0,0.04437]
[1764322443177,0.59976342,91618.0,91617.0,0.04437]
[1764322443578,0.57718,91618.0,91617.0,0.04437]
[1764322443774,0.57718,91618.0,91614.0,0.01358]
[1764322443978,0.04122,91612.0,91611.0,0.05845714]
[1764322444179,0.04122,91610.0,91609.0,0.08084714]
[1764322444377,0.010917,91609.0,91607.0,0.05845714]
[1764322444683,0.04122,91608.0,91607.0,0.10356714]
[1764322445180,0.04122,91608.0,91607.0,0.04511]
[1764322445386,0.02061,91608.0,91607.0,0.04511]
[1764322446179,0.02161,91608.0,91607.0,0.04511]
[1764322446381,0.04222,91608.0,91607.0,0.04511]
[1764322446687,0.04122,91608.0,91607.0,0.04511]
[1764322446982,0.04322,91608.0,91607.0,0.04511]
[1764322448886,0.04422,91608.0,91607.0,0.02239]
[1764322449087,0.04122,91604.0,91603.0,0.07398168]
[1764322449387,0.0521376,91604.0,91603.0,0.07398168]
[1764322449982,0.0109176,91604.0,91603.0,0.07398168]
[1764322450491,0.0315276,91604.0,91603.0,0.07398168]
[1764322450685,0.0521376,91604.0,91603.0,0.07398168]
[1764322450988,0.96768777,91604.0,91603.0,0.02870795]
[1764322451377,0.96968777,91604.0,91603.0,0.02870795]
[1764322451581,0.96968777,91604.0,91603.0,0.02844726]
[1764322458191,0.96968777,91604.0,91603.0,0.01045558]
[1764322458388,0.96968777,91604.0,91603.0,8e-08]
[1764322464087,0.60968777,91604.0,91603.0,8e-08]
[1764322464290,1.04968777,91604.0,91603.0,8e-08]
[1764322465894,0.0109184,91597.0,91596.0,0.01787757]
[1764322466091,0.4621384,91597.0,91596.0,0.02133]
[1764322466293,0.0521391,91591.0,91590.0,0.0555]
[1764322466497,0.2242991,91591.0,91590.0,0.0555]
[1764322467906,0.2242991,91591.0,91590.0,0.0575]
[1764322468086,0.2242991,91591.0,91590.0,0.07673852]
[1764322469096,0.1830791,91591.0,91590.0,0.07673852]
[1764322470002,0.2036891,91591.0,91590.0,0.07673852]
[1764322470302,0.2242991,91591.0,91590.0,0.07673852]
[1764322473495,0.1830791,91591.0,91590.0,0.07673852]
[1764322474504,0.3608,91598.0,91590.0,0.07673852]
[1764322474505,0.3717183,91598.0,91597.0,0.04321]
[1764322474804,0.5439183,91598.0,91597.0,0.04321]
[1764322475394,0.5645283,91598.0,91597.0,0.04321]
[1764322477497,0.5439183,91598.0,91597.0,0.04321]
[1764322478696,0.5851383,91598.0,91597.0,0.04321]
[1764322480309,0.60778238,91598.0,91597.0,0.04321]
[1764322485111,0.0521389,91593.0,91592.0,0.10170166]
[1764322486312,0.0521389,91593.0,91592.0,0.10270166]
[1764322486507,0.0521389,91593.0,91592.0,0.10370166]
[1764322489612,0.0109186,91596.0,91595.0,0.02119]
[1764322489811,0.0721386,91596.0,91595.0,0.04321]
[1764322490113,0.2442986,91596.0,91595.0,0.04321]
[1764322491014,0.6042986,91596.0,91595.0,0.04321]
[1764322491401,0.9650986,91596.0,91595.0,0.04321]
[1764322491600,0.6350986,91596.0,91595.0,0.04321]
[1764322492214,0.5850986,91596.0,91595.0,0.04321]
[1764322493718,0.0340989,91594.0,91591.0,0.0109191]
[1764322493908,0.0340989,91594.0,91593.0,0.0541289]
[1764322494108,0.0109189,91594.0,91593.0,0.0541289]
[1764322494321,0.3608,91596.0,91595.0,0.0541287]
[1764322495017,0.38398,91596.0,91595.0,0.0541287]
[1764322495213,0.3608,91596.0,91595.0,0.0541287]
[1764322495515,0.3608,91596.0,91595.0,0.4541287]
[1764322497508,0.4167476,91604.0,91603.0,0.04321]
[1764322498819,0.4187476,91604.0,91603.0,0.04321]
[1764322499809,0.3628,91604.0,91603.0,0.39321]
[1764322503819,0.3628,91604.0,91603.0,0.41163879]
[1764322505126,0.40817,91604.0,91603.0,0.41163879]
[1764322505627,0.04737,91604.0,91603.0,0.41163879]
[1764322505820,0.002,91604.0,91603.0,0.41163879]
[1764322506428,0.02513,91604.0,91603.0,0.41163879]
[1764322507212,0.002,91604.0,91603.0,0.41163879]
[1764322509223,0.04732,91604.0,91603.0,0.24163879]
[1764322509916,0.04732,91604.0,91603.0,0.43163879]
[1764322510128,0.002,91604.0,91603.0,0.43163879]
[1764322510918,0.00016373,91606.0,91605.0,0.04608]
[1764322511123,0.00016373,91606.0,91605.0,0.45608]
[1764322511920,0.00216373,91606.0,91605.0,0.45608]
[1764322513225,0.40612,91617.0,91616.0,0.04608]
[1764322513530,0.0691143,91632.0,91631.0,0.04608]
[1764322513730,0.09226002,91632.0,91631.0,0.04608]
[1764322513923,0.0928428,91632.0,91631.0,0.04608]
[1764322514325,0.0691143,91632.0,91631.0,0.04608]
[1764322514522,0.0771143,91632.0,91631.0,0.04608]
[1764322515123,0.0761143,91632.0,91631.0,0.04608]
[1764322515326,0.0562353,91623.0,91622.0,0.36096373]
[1764322515529,0.0562353,91623.0,91622.0,0.00016373]
[1764322517236,0.0572353,91623.0,91622.0,0.00016373]
[1764322517632,0.0612353,91623.0,91622.0,0.00016373]
[1764322522438,0.0612353,91623.0,91622.0,0.01729646]
[1764322523032,0.0612353,91623.0,91622.0,0.03857646]
[1764322523938,0.5012353,91623.0,91622.0,0.01729646]
[1764322529332,0.52500102,91623.0,91622.0,0.01729646]
[1764322533234,0.15500102,91623.0,91622.0,0.01729646]
[1764322533437,0.49500102,91623.0,91622.0,0.06173646]
[1764322533739,0.49500102,91623.0,91622.0,0.01729646]
[1764322534244,0.01245,91605.0,91603.0,0.0553576]
[1764322534439,0.04262,91604.0,91603.0,0.4853576]
[1764322536141,0.04262,91604.0,91603.0,0.4863576]
[1764322536834,0.04262,91604.0,91603.0,0.02254]
[1764322537034,0.0535377,91603.0,91602.0,0.03860476]